[Event "*** Titled Tuesday 3|2 Blitz (Early)"]
[Site "Chess.com"]
[Date "2017.01.03"]
[Round "7"]
[White "ChristopherYoo"]
[Black "davidarenas1224"]
[Result "0-1"]
[WhiteElo "2059"]
[BlackElo "2208"]
[TimeControl "180+2"]
[EndTime "12:31:18 PST"]
[Termination "davidarenas1224 won by checkmate"]

1. e4 {[%clk 0:03:02]} 1... c5 {[%clk 0:03:00.4]} 2. Nf3 {[%clk 0:03:01.1]} 2...
d6 {[%clk 0:03:01.6]} 3. d4 {[%clk 0:03:01]} 3... Nf6 {[%clk 0:03:02.5]} 4. Nc3
{[%clk 0:03:00.8]} 4... cxd4 {[%clk 0:03:03.3]} 5. Nxd4 {[%clk 0:03:01.7]} 5...
g6 {[%clk 0:03:05]} 6. Be3 {[%clk 0:03:02.2]} 6... a6 {[%clk 0:03:06.5]} 7. f3
{[%clk 0:02:59.4]} 7... b5 {[%clk 0:03:07.4]} 8. a3 {[%clk 0:02:59.4]} 8... Bb7
{[%clk 0:03:08.1]} 9. Qd2 {[%clk 0:03:00]} 9... Nbd7 {[%clk 0:03:09.3]} 10.
O-O-O {[%clk 0:02:59.6]} 10... h5 {[%clk 0:03:09.6]} 11. Be2 {[%clk 0:02:55.8]}
11... Rc8 {[%clk 0:03:10.1]} 12. Rhe1 {[%clk 0:02:55.4]} 12... Bg7 {[%clk
0:03:07.6]} 13. Kb1 {[%clk 0:02:02.5]} 13... Nb6 {[%clk 0:03:06.5]} 14. Bd3
{[%clk 0:01:56.1]} 14... Nc4 {[%clk 0:03:05.4]} 15. Bxc4 {[%clk 0:01:56.5]}
15... Rxc4 {[%clk 0:03:07.3]} 16. Nb3 {[%clk 0:01:54.3]} 16... Nd7 {[%clk
0:03:01.5]} 17. Bd4 {[%clk 0:01:48.8]} 17... O-O {[%clk 0:03:00.7]} 18. Bxg7
{[%clk 0:01:48.6]} 18... Kxg7 {[%clk 0:03:01.2]} 19. Nd5 {[%clk 0:01:49.4]}
19... Bxd5 {[%clk 0:03:00.1]} 20. Qxd5 {[%clk 0:01:46.4]} 20... Qc7 {[%clk
0:02:56.5]} 21. Re2 {[%clk 0:01:37.6]} 21... Rc8 {[%clk 0:02:55.5]} 22. c3
{[%clk 0:01:28.6]} 22... Nb6 {[%clk 0:02:54]} 23. Qd3 {[%clk 0:01:26.7]} 23...
Na4 {[%clk 0:02:53.7]} 24. Rc1 {[%clk 0:01:24.1]} 24... a5 {[%clk 0:02:51.5]}
25. Nd2 {[%clk 0:01:19.2]} 25... Rc5 {[%clk 0:02:46.5]} 26. Nb3 {[%clk
0:01:07.5]} 26... b4 {[%clk 0:02:22.8]} 27. Nxc5 {[%clk 0:01:02.9]} 27... Nxc5
{[%clk 0:02:24.7]} 28. Qd4+ {[%clk 0:00:56.5]} 28... e5 {[%clk 0:02:25.3]} 29.
Qd5 {[%clk 0:00:57]} 29... bxa3 {[%clk 0:02:25.1]} 30. bxa3 {[%clk 0:00:53.4]}
30... Na4 {[%clk 0:02:23.3]} 31. Rec2 {[%clk 0:00:50.2]} 31... Qb6+ {[%clk
0:02:15.8]} 32. Ka1 {[%clk 0:00:46.1]} 32... Rc5 {[%clk 0:02:16.5]} 33. Qa2
{[%clk 0:00:43.9]} 33... Qc6 {[%clk 0:02:12.4]} 34. c4 {[%clk 0:00:42.2]} 34...
Qa6 {[%clk 0:01:54.2]} 35. Qb3 {[%clk 0:00:40.3]} 35... Nb6 {[%clk 0:01:50.9]}
36. a4 {[%clk 0:00:40]} 36... Nd7 {[%clk 0:01:35.6]} 37. Rb1 {[%clk 0:00:31.6]}
37... Rc7 {[%clk 0:01:35.4]} 38. Qb5 {[%clk 0:00:30.5]} 38... Qa7 {[%clk
0:01:36.4]} 39. Rd2 {[%clk 0:00:27.8]} 39... Qe3 {[%clk 0:01:30.3]} 40. Ra2
{[%clk 0:00:14.4]} 40... Nc5 {[%clk 0:01:30.2]} 41. Qxa5 {[%clk 0:00:12.3]}
41... Rb7 {[%clk 0:01:14.6]} 42. Rxb7 {[%clk 0:00:11.2]} 42... Qc1+ {[%clk
0:01:15]} 43. Rb1 {[%clk 0:00:09.6]} 43... Nb3# {[%clk 0:01:15.8]} 0-1

[Event "*** Titled Tuesday 3|2 Blitz (Early)"]
[Site "Chess.com"]
[Date "2017.01.03"]
[Round "7"]
[White "Gabrielian_Artur"]
[Black "iturrizaga"]
[Result "0-1"]
[WhiteElo "2662"]
[BlackElo "2662"]
[TimeControl "180+2"]
[EndTime "12:31:28 PST"]
[Termination "iturrizaga won by resignation"]

1. e4 {[%clk 0:03:02]} 1... c5 {[%clk 0:03:01.1]} 2. Nf3 {[%clk 0:03:03]} 2...
Nc6 {[%clk 0:03:02.4]} 3. Bb5 {[%clk 0:03:03.2]} 3... g6 {[%clk 0:03:03.3]} 4.
Bxc6 {[%clk 0:03:02.7]} 4... bxc6 {[%clk 0:03:05.2]} 5. O-O {[%clk 0:03:03.5]}
5... Bg7 {[%clk 0:03:06.4]} 6. c3 {[%clk 0:03:04]} 6... Nh6 {[%clk 0:03:01.4]}
7. d4 {[%clk 0:03:04.3]} 7... cxd4 {[%clk 0:03:02.7]} 8. cxd4 {[%clk 0:03:05.8]}
8... O-O {[%clk 0:03:03.7]} 9. Re1 {[%clk 0:03:03.9]} 9... f6 {[%clk 0:02:58]}
10. Nc3 {[%clk 0:02:53.1]} 10... d6 {[%clk 0:02:51.2]} 11. h3 {[%clk 0:02:51.8]}
11... Nf7 {[%clk 0:02:50.6]} 12. Be3 {[%clk 0:02:51.4]} 12... e5 {[%clk
0:02:40.2]} 13. Rc1 {[%clk 0:02:51.6]} 13... Qe7 {[%clk 0:02:39.5]} 14. Qd2
{[%clk 0:02:49]} 14... Rb8 {[%clk 0:02:35.5]} 15. b3 {[%clk 0:02:49.8]} 15...
Rd8 {[%clk 0:02:30.2]} 16. Qe2 {[%clk 0:02:46.2]} 16... Qb7 {[%clk 0:02:09.7]}
17. Red1 {[%clk 0:02:45.9]} 17... exd4 {[%clk 0:02:03.5]} 18. Nxd4 {[%clk
0:02:35.4]} 18... Bd7 {[%clk 0:02:04.4]} 19. Qc4 {[%clk 0:02:32.9]} 19... Re8
{[%clk 0:02:02.3]} 20. Rd2 {[%clk 0:02:11.1]} 20... Re7 {[%clk 0:01:57.5]} 21.
Bf4 {[%clk 0:02:06.3]} 21... Kh8 {[%clk 0:01:56.1]} 22. Rdd1 {[%clk 0:02:00.5]}
22... Qb4 {[%clk 0:01:44.7]} 23. Qxb4 {[%clk 0:01:54.1]} 23... Rxb4 {[%clk
0:01:44.8]} 24. Bg3 {[%clk 0:01:54.9]} 24... f5 {[%clk 0:01:41.9]} 25. Nde2
{[%clk 0:01:53.2]} 25... fxe4 {[%clk 0:01:30.4]} 26. Bxd6 {[%clk 0:01:54.2]}
26... Nxd6 {[%clk 0:01:31.4]} 27. Rxd6 {[%clk 0:01:55.2]} 27... Be5 {[%clk
0:01:33.1]} 28. Rd2 {[%clk 0:01:51.1]} 28... Kg7 {[%clk 0:01:32]} 29. Nd1 {[%clk
0:01:44.7]} 29... a5 {[%clk 0:01:28.7]} 30. Ne3 {[%clk 0:01:43.5]} 30... a4
{[%clk 0:01:30.2]} 31. bxa4 {[%clk 0:01:33.1]} 31... Rxa4 {[%clk 0:01:30.6]} 32.
Nc3 {[%clk 0:01:33.6]} 32... Rb4 {[%clk 0:00:58.6]} 33. a3 {[%clk 0:01:21.5]}
33... Rb3 {[%clk 0:00:57.8]} 34. Nxe4 {[%clk 0:01:14.4]} 34... Rxa3 {[%clk
0:00:59.2]} 35. Nc5 {[%clk 0:00:46.2]} 35... Be8 {[%clk 0:00:54.1]} 36. Nc4
{[%clk 0:00:41.6]} 36... Bf4 {[%clk 0:00:53.9]} 37. Nxa3 {[%clk 0:00:31.5]}
37... Bxd2 {[%clk 0:00:54.9]} 38. Rc2 {[%clk 0:00:32.5]} 38... Bb4 {[%clk
0:00:49.8]} 39. Nb1 {[%clk 0:00:18.8]} 39... Bxc5 {[%clk 0:00:45.1]} 40. Rxc5
{[%clk 0:00:19.1]} 40... Re1+ {[%clk 0:00:46.7]} 41. Kh2 {[%clk 0:00:20.5]}
41... Rxb1 {[%clk 0:00:48.6]} 0-1

[Event "*** Titled Tuesday 3|2 Blitz (Early)"]
[Site "Chess.com"]
[Date "2017.01.03"]
[Round "7"]
[White "yian123"]
[Black "boredoldman"]
[Result "0-1"]
[WhiteElo "2373"]
[BlackElo "2490"]
[TimeControl "180+2"]
[EndTime "12:31:29 PST"]
[Termination "boredoldman won by resignation"]

1. e4 {[%clk 0:03:01.9]} 1... c5 {[%clk 0:02:59.8]} 2. Nf3 {[%clk 0:03:02.5]}
2... d6 {[%clk 0:02:58.4]} 3. d4 {[%clk 0:03:03.4]} 3... cxd4 {[%clk 0:03:00.3]}
4. Nxd4 {[%clk 0:03:05.3]} 4... Nf6 {[%clk 0:03:02.2]} 5. Nc3 {[%clk 0:03:06.5]}
5... a6 {[%clk 0:03:03.8]} 6. Be3 {[%clk 0:03:07.3]} 6... e5 {[%clk 0:03:04]} 7.
Nf3 {[%clk 0:03:07.8]} 7... Be7 {[%clk 0:03:03]} 8. Bc4 {[%clk 0:03:07.6]} 8...
Ng4 {[%clk 0:02:39.6]} 9. Bc1 {[%clk 0:03:01]} 9... O-O {[%clk 0:02:37.2]} 10.
O-O {[%clk 0:02:57.9]} 10... Nc6 {[%clk 0:02:33.6]} 11. h3 {[%clk 0:02:56.7]}
11... Nf6 {[%clk 0:02:33]} 12. Bg5 {[%clk 0:02:57.8]} 12... Be6 {[%clk
0:02:29.9]} 13. Bb3 {[%clk 0:02:53.2]} 13... Rc8 {[%clk 0:02:31]} 14. Bxf6
{[%clk 0:02:50.1]} 14... Bxf6 {[%clk 0:02:31.4]} 15. Nd5 {[%clk 0:02:51.4]}
15... Bxd5 {[%clk 0:02:32.1]} 16. Bxd5 {[%clk 0:02:51.5]} 16... Qb6 {[%clk
0:02:32.1]} 17. Bb3 {[%clk 0:02:42]} 17... Na5 {[%clk 0:02:28.2]} 18. Qd3 {[%clk
0:02:37.1]} 18... Be7 {[%clk 0:02:26.7]} 19. Nd2 {[%clk 0:02:34.5]} 19... g6
{[%clk 0:02:24.2]} 20. Rab1 {[%clk 0:02:19.9]} 20... Nxb3 {[%clk 0:02:22]} 21.
axb3 {[%clk 0:02:17.3]} 21... Qd4 {[%clk 0:02:18.3]} 22. Nc4 {[%clk 0:02:04.7]}
22... f5 {[%clk 0:02:11.3]} 23. Rbd1 {[%clk 0:01:47.1]} 23... Qxd3 {[%clk
0:02:05.8]} 24. cxd3 {[%clk 0:01:44.9]} 24... Kg7 {[%clk 0:02:07]} 25. d4 {[%clk
0:01:32.6]} 25... b5 {[%clk 0:02:04]} 26. Nb6 {[%clk 0:01:30.6]} 26... Rc2
{[%clk 0:02:05.2]} 27. dxe5 {[%clk 0:01:14.8]} 27... dxe5 {[%clk 0:02:07.1]} 28.
Nd7 {[%clk 0:01:14.8]} 28... Rd8 {[%clk 0:02:06.3]} 29. exf5 {[%clk 0:01:12]}
29... gxf5 {[%clk 0:02:04.4]} 30. Nxe5 {[%clk 0:01:12]} 30... Rxd1 {[%clk
0:01:44.5]} 31. Rxd1 {[%clk 0:01:13.9]} 31... Rxb2 {[%clk 0:01:45.4]} 32. Rd3
{[%clk 0:00:26]} 32... Kf6 {[%clk 0:01:35.5]} 33. Nd7+ {[%clk 0:00:19.4]} 33...
Ke6 {[%clk 0:01:34.8]} 34. g4 {[%clk 0:00:14]} 34... fxg4 {[%clk 0:01:34.3]} 35.
hxg4 {[%clk 0:00:15.9]} 35... a5 {[%clk 0:01:34.3]} 36. Nb8 {[%clk 0:00:08.2]}
36... Bc5 {[%clk 0:01:32.7]} 37. Nc6 {[%clk 0:00:07.7]} 37... Rxf2 {[%clk
0:01:23]} 38. Nd4+ {[%clk 0:00:06.7]} 38... Bxd4 {[%clk 0:01:22.8]} 39. Rxd4
{[%clk 0:00:08]} 39... Rf3 {[%clk 0:01:24]} 40. Re4+ {[%clk 0:00:09]} 40... Kd5
{[%clk 0:01:24.3]} 41. Re7 {[%clk 0:00:09.7]} 41... Rxb3 {[%clk 0:01:25.2]} 42.
Kf2 {[%clk 0:00:10.8]} 42... a4 {[%clk 0:01:23.2]} 43. Rxh7 {[%clk 0:00:11.4]}
43... a3 {[%clk 0:01:24.5]} 44. Ra7 {[%clk 0:00:11.5]} 44... Rb2+ {[%clk
0:01:23.2]} 0-1

[Event "*** Titled Tuesday 3|2 Blitz (Early)"]
[Site "Chess.com"]
[Date "2017.01.03"]
[Round "7"]
[White "poummba"]
[Black "QuintilianoR"]
[Result "1-0"]
[WhiteElo "2430"]
[BlackElo "2521"]
[TimeControl "180+2"]
[EndTime "12:31:54 PST"]
[Termination "poummba won by resignation"]

1. e4 {[%clk 0:03:02]} 1... c5 {[%clk 0:02:59.9]} 2. Nf3 {[%clk 0:03:03.3]} 2...
d6 {[%clk 0:03:01]} 3. d4 {[%clk 0:03:04.5]} 3... cxd4 {[%clk 0:03:01.5]} 4.
Nxd4 {[%clk 0:03:06.4]} 4... Nf6 {[%clk 0:03:01.8]} 5. Nc3 {[%clk 0:03:08]} 5...
g6 {[%clk 0:03:02.8]} 6. Be3 {[%clk 0:03:07.5]} 6... Bg7 {[%clk 0:03:03.3]} 7.
Be2 {[%clk 0:03:09]} 7... Nc6 {[%clk 0:03:03.4]} 8. O-O {[%clk 0:03:10.3]} 8...
O-O {[%clk 0:03:04]} 9. Qd2 {[%clk 0:03:11.9]} 9... d5 {[%clk 0:03:01.1]} 10.
Rfd1 {[%clk 0:03:11.7]} 10... Nxd4 {[%clk 0:02:53.4]} 11. Qxd4 {[%clk
0:03:12.4]} 11... Be6 {[%clk 0:02:18.6]} 12. e5 {[%clk 0:03:00.7]} 12... Nd7
{[%clk 0:02:17.9]} 13. f4 {[%clk 0:03:00.3]} 13... f6 {[%clk 0:02:18.7]} 14.
Nxd5 {[%clk 0:02:47.3]} 14... fxe5 {[%clk 0:02:12.9]} 15. fxe5 {[%clk 0:02:47]}
15... Bxe5 {[%clk 0:02:10.2]} 16. Qh4 {[%clk 0:02:43.8]} 16... Rf7 {[%clk
0:02:09.1]} 17. Bc4 {[%clk 0:02:28.1]} 17... Rc8 {[%clk 0:02:02.9]} 18. Rf1
{[%clk 0:02:19.4]} 18... Rxc4 {[%clk 0:01:04.3]} 19. Qxc4 {[%clk 0:02:19]} 19...
Nf8 {[%clk 0:00:57.8]} 20. Rxf7 {[%clk 0:02:06.2]} 20... Bxf7 {[%clk 0:00:41.3]}
21. Rd1 {[%clk 0:01:59.6]} 21... Bxb2 {[%clk 0:00:41.6]} 22. c3 {[%clk
0:01:35.6]} 22... e6 {[%clk 0:00:38]} 23. Qb3 {[%clk 0:01:26.6]} 23... exd5
{[%clk 0:00:37.2]} 24. Qxb2 {[%clk 0:01:26.5]} 24... b6 {[%clk 0:00:34.5]} 25.
c4 {[%clk 0:01:22.9]} 25... Qh4 {[%clk 0:00:14.5]} 26. cxd5 {[%clk 0:01:17.7]}
26... Qh5 {[%clk 0:00:15.4]} 27. Qd4 {[%clk 0:01:08.6]} 27... Nd7 {[%clk
0:00:16.3]} 28. Bf4 {[%clk 0:00:48.1]} 28... Qf5 {[%clk 0:00:17.4]} 29. h3
{[%clk 0:00:43.5]} 29... Qc2 {[%clk 0:00:18.2]} 30. Bh6 {[%clk 0:00:38.5]} 30...
Qc5 {[%clk 0:00:16.2]} 31. Qxc5 {[%clk 0:00:38.3]} 31... Nxc5 {[%clk 0:00:18.1]}
32. d6 {[%clk 0:00:36.9]} 32... Nd7 {[%clk 0:00:18.8]} 33. Rc1 {[%clk
0:00:36.7]} 33... Bxa2 {[%clk 0:00:19.5]} 34. Rc7 {[%clk 0:00:37.3]} 34... Be6
{[%clk 0:00:20.6]} 35. Rxa7 {[%clk 0:00:38.2]} 35... Kf7 {[%clk 0:00:22.1]} 36.
Be3 {[%clk 0:00:37.2]} 36... Bf5 {[%clk 0:00:22.5]} 37. Bxb6 {[%clk 0:00:35.6]}
37... Ke6 {[%clk 0:00:23.3]} 38. Bc7 {[%clk 0:00:36.2]} 38... Be4 {[%clk
0:00:24.5]} 39. Kf2 {[%clk 0:00:33.8]} 39... Bc6 {[%clk 0:00:25.2]} 40. g4
{[%clk 0:00:31.9]} 40... Bd5 {[%clk 0:00:26.6]} 41. Ke3 {[%clk 0:00:31.5]} 41...
Ne5 {[%clk 0:00:27.7]} 42. Ra1 {[%clk 0:00:29]} 42... Nc4+ {[%clk 0:00:28.6]}
43. Kd4 {[%clk 0:00:30.2]} 43... Nxd6 {[%clk 0:00:29.9]} 44. Re1+ {[%clk
0:00:27.7]} 44... Ne4 {[%clk 0:00:30.8]} 45. Rxe4+ {[%clk 0:00:27.2]} 45... Bxe4
{[%clk 0:00:32.7]} 46. Kxe4 {[%clk 0:00:28.7]} 46... h5 {[%clk 0:00:34.2]} 47.
g5 {[%clk 0:00:28.7]} 1-0

[Event "*** Titled Tuesday 3|2 Blitz (Early)"]
[Site "Chess.com"]
[Date "2017.01.03"]
[Round "7"]
[White "MrReinberg"]
[Black "gumersindo"]
[Result "1-0"]
[WhiteElo "2176"]
[BlackElo "2334"]
[TimeControl "180+2"]
[EndTime "12:32:00 PST"]
[Termination "MrReinberg won by checkmate"]

1. e4 {[%clk 0:03:02]} 1... e6 {[%clk 0:03:01.1]} 2. Nc3 {[%clk 0:03:01.2]} 2...
d5 {[%clk 0:03:02.2]} 3. d3 {[%clk 0:03:01.9]} 3... c5 {[%clk 0:03:01.9]} 4. g3
{[%clk 0:03:01.6]} 4... Nc6 {[%clk 0:03:02.5]} 5. Bg2 {[%clk 0:03:00.4]} 5...
Nf6 {[%clk 0:03:04.1]} 6. f4 {[%clk 0:03:00.4]} 6... Be7 {[%clk 0:02:59.7]} 7.
Nf3 {[%clk 0:03:00.6]} 7... b6 {[%clk 0:03:00.8]} 8. O-O {[%clk 0:02:47.3]} 8...
Bb7 {[%clk 0:03:01.2]} 9. Ne5 {[%clk 0:02:43.3]} 9... d4 {[%clk 0:02:55.1]} 10.
Nxc6 {[%clk 0:01:37.2]} 10... Bxc6 {[%clk 0:02:54.4]} 11. Nb1 {[%clk 0:01:37]}
11... Qd7 {[%clk 0:02:52.7]} 12. Nd2 {[%clk 0:01:35.9]} 12... O-O {[%clk
0:02:51.6]} 13. Nc4 {[%clk 0:01:33.4]} 13... Bb7 {[%clk 0:02:51.5]} 14. Ne5
{[%clk 0:01:32.7]} 14... Qc8 {[%clk 0:02:51.7]} 15. Ng4 {[%clk 0:01:33.2]} 15...
Nxg4 {[%clk 0:02:51.4]} 16. Qxg4 {[%clk 0:01:35.1]} 16... f5 {[%clk 0:02:51.6]}
17. exf5 {[%clk 0:01:33.4]} 17... exf5 {[%clk 0:02:52.4]} 18. Bxb7 {[%clk
0:01:22.6]} 18... Qxb7 {[%clk 0:02:52.7]} 19. Qf3 {[%clk 0:01:23.7]} 19... Qxf3
{[%clk 0:02:53.3]} 20. Rxf3 {[%clk 0:01:25.6]} 20... Bd6 {[%clk 0:02:52.6]} 21.
Bd2 {[%clk 0:01:26]} 21... Rae8 {[%clk 0:02:52.9]} 22. Kf1 {[%clk 0:01:25.6]}
22... Kf7 {[%clk 0:02:53.6]} 23. Re1 {[%clk 0:01:23.8]} 23... Rxe1+ {[%clk
0:02:51.7]} 24. Kxe1 {[%clk 0:01:24.9]} 24... Re8+ {[%clk 0:02:52.9]} 25. Kd1
{[%clk 0:01:26]} 25... Kg6 {[%clk 0:02:53.4]} 26. h3 {[%clk 0:01:26.1]} 26...
Kf6 {[%clk 0:02:53.8]} 27. Rf1 {[%clk 0:01:25.9]} 27... h5 {[%clk 0:02:45.4]}
28. c3 {[%clk 0:01:24.9]} 28... dxc3 {[%clk 0:02:42.2]} 29. bxc3 {[%clk
0:01:26.8]} 29... g6 {[%clk 0:02:40.2]} 30. a4 {[%clk 0:01:26.8]} 30... a6
{[%clk 0:02:35.8]} 31. c4 {[%clk 0:01:23.2]} 31... b5 {[%clk 0:02:34.5]} 32.
axb5 {[%clk 0:01:07.4]} 32... axb5 {[%clk 0:02:35.5]} 33. cxb5 {[%clk
0:01:07.8]} 33... Rb8 {[%clk 0:02:35.8]} 34. Bc3+ {[%clk 0:01:08.4]} 34... Kf7
{[%clk 0:02:36.3]} 35. Kc2 {[%clk 0:01:09]} 35... Rxb5 {[%clk 0:02:36.4]} 36.
Ra1 {[%clk 0:01:08.9]} 36... h4 {[%clk 0:02:32.9]} 37. Ra6 {[%clk 0:01:04]}
37... Be7 {[%clk 0:02:19.7]} 38. gxh4 {[%clk 0:00:43.5]} 38... Bxh4 {[%clk
0:02:19.7]} 39. Rc6 {[%clk 0:00:42.3]} 39... Bg3 {[%clk 0:02:18.4]} 40. Be5
{[%clk 0:00:41.3]} 40... Bh4 {[%clk 0:02:15.3]} 41. Kc3 {[%clk 0:00:36.9]} 41...
Be7 {[%clk 0:02:14.5]} 42. Rc7 {[%clk 0:00:34.8]} 42... Ke6 {[%clk 0:02:14]} 43.
Ra7 {[%clk 0:00:34.5]} 43... Rb1 {[%clk 0:02:12.4]} 44. Ra6+ {[%clk 0:00:34.8]}
44... Kf7 {[%clk 0:02:12.7]} 45. Kc4 {[%clk 0:00:35.6]} 45... Rc1+ {[%clk
0:02:11.2]} 46. Kd5 {[%clk 0:00:35.6]} 46... Rd1 {[%clk 0:02:12]} 47. Kc4 {[%clk
0:00:35.4]} 47... Rh1 {[%clk 0:02:12.6]} 48. Ra7 {[%clk 0:00:32.9]} 48... Ke6
{[%clk 0:02:08.9]} 49. Ra6+ {[%clk 0:00:30.1]} 49... Kf7 {[%clk 0:02:09.7]} 50.
Ra7 {[%clk 0:00:26.8]} 50... Ke8 {[%clk 0:02:09.7]} 51. Ra6 {[%clk 0:00:22.3]}
51... Kf7 {[%clk 0:02:07.4]} 52. Ra7 {[%clk 0:00:22.7]} 52... Ke6 {[%clk
0:02:05.3]} 53. Ra6+ {[%clk 0:00:21.4]} 53... Kf7 {[%clk 0:02:03]} 54. Ra7
{[%clk 0:00:19.2]} 54... Rc1+ {[%clk 0:02:04]} 55. Kd5 {[%clk 0:00:17.3]} 55...
Rd1 {[%clk 0:02:04.9]} 56. d4 {[%clk 0:00:15]} 56... Ke8 {[%clk 0:01:58.9]} 57.
Ke6 {[%clk 0:00:15.3]} 57... Bd8 {[%clk 0:01:55.7]} 58. d5 {[%clk 0:00:13.3]}
58... c4 {[%clk 0:01:56.5]} 59. Rh7 {[%clk 0:00:11.5]} 59... c3 {[%clk 0:01:44]}
60. Rh8# {[%clk 0:00:08.5]} 1-0

[Event "*** Titled Tuesday 3|2 Blitz (Early)"]
[Site "Chess.com"]
[Date "2017.01.03"]
[Round "7"]
[White "Iball95"]
[Black "Spas_Kozhuharov"]
[Result "1-0"]
[WhiteElo "2472"]
[BlackElo "2471"]
[TimeControl "180+2"]
[EndTime "12:32:12 PST"]
[Termination "Iball95 won by checkmate"]

1. e4 {[%clk 0:03:02]} 1... c6 {[%clk 0:02:58]} 2. Nc3 {[%clk 0:02:56.8]} 2...
d5 {[%clk 0:02:59.5]} 3. Nf3 {[%clk 0:02:57.6]} 3... Bg4 {[%clk 0:03:00.1]} 4.
h3 {[%clk 0:02:58.3]} 4... Bh5 {[%clk 0:03:01.1]} 5. exd5 {[%clk 0:02:57.4]}
5... cxd5 {[%clk 0:03:03]} 6. d4 {[%clk 0:02:58.1]} 6... Bxf3 {[%clk 0:02:52.7]}
7. Qxf3 {[%clk 0:02:57.7]} 7... e6 {[%clk 0:02:54.6]} 8. Bd3 {[%clk 0:02:51.3]}
8... Nc6 {[%clk 0:02:50]} 9. Ne2 {[%clk 0:02:51.4]} 9... Nf6 {[%clk 0:02:43.4]}
10. O-O {[%clk 0:02:51.6]} 10... Be7 {[%clk 0:02:42.6]} 11. c3 {[%clk
0:02:51.4]} 11... O-O {[%clk 0:02:42]} 12. Bf4 {[%clk 0:02:39.5]} 12... Qb6
{[%clk 0:02:40.2]} 13. Rab1 {[%clk 0:02:37.9]} 13... a6 {[%clk 0:02:35.8]} 14.
Rfe1 {[%clk 0:02:29.9]} 14... Na5 {[%clk 0:02:29.9]} 15. Ng3 {[%clk 0:02:28.3]}
15... Nc4 {[%clk 0:02:29.2]} 16. Nf5 {[%clk 0:02:16.8]} 16... Bd8 {[%clk
0:02:12.1]} 17. Bxc4 {[%clk 0:01:52.8]} 17... dxc4 {[%clk 0:02:10.9]} 18. Nd6
{[%clk 0:01:54.3]} 18... Nd5 {[%clk 0:01:59.5]} 19. Nxc4 {[%clk 0:01:54.1]}
19... Qb5 {[%clk 0:01:46]} 20. Nd6 {[%clk 0:01:37.6]} 20... Qc6 {[%clk
0:01:37.9]} 21. Bg3 {[%clk 0:01:29.9]} 21... b5 {[%clk 0:01:35.6]} 22. Rbc1
{[%clk 0:01:24.5]} 22... Be7 {[%clk 0:01:32.1]} 23. Ne4 {[%clk 0:01:24.1]} 23...
a5 {[%clk 0:01:31.5]} 24. Be5 {[%clk 0:01:22.5]} 24... Rfc8 {[%clk 0:01:22.3]}
25. b3 {[%clk 0:01:22.8]} 25... f6 {[%clk 0:01:16.8]} 26. Bh2 {[%clk 0:01:22.6]}
26... f5 {[%clk 0:01:17.6]} 27. Nc5 {[%clk 0:01:18.7]} 27... Bxc5 {[%clk
0:01:13]} 28. dxc5 {[%clk 0:01:20.6]} 28... Qxc5 {[%clk 0:01:08.4]} 29. Rxe6
{[%clk 0:01:15.7]} 29... Nxc3 {[%clk 0:01:09]} 30. Rce1 {[%clk 0:01:06.5]} 30...
Ne4 {[%clk 0:01:02.6]} 31. Re5 {[%clk 0:01:01.7]} 31... Qb4 {[%clk 0:00:57.4]}
32. Rd1 {[%clk 0:00:53.6]} 32... Rd8 {[%clk 0:00:53.2]} 33. Bf4 {[%clk
0:00:40.4]} 33... Rxd1+ {[%clk 0:00:47.6]} 34. Qxd1 {[%clk 0:00:40.9]} 34... Rf8
{[%clk 0:00:26.2]} 35. Qd5+ {[%clk 0:00:38.7]} 35... Kh8 {[%clk 0:00:27.4]} 36.
Rxf5 {[%clk 0:00:31.9]} 36... Rg8 {[%clk 0:00:23.7]} 37. Be5 {[%clk 0:00:25.6]}
37... Qe1+ {[%clk 0:00:22.7]} 38. Kh2 {[%clk 0:00:26]} 38... Nxf2 {[%clk
0:00:23.4]} 39. Bxg7+ {[%clk 0:00:23.2]} 39... Kxg7 {[%clk 0:00:20.2]} 40. Qd4+
{[%clk 0:00:23.4]} 40... Kg6 {[%clk 0:00:18.7]} 41. Qf6# {[%clk 0:00:23]} 1-0